[Event "*** Titled Tuesday Blitz"]
[Site "Chess.com"]
[Date "2020.12.29"]
[Round "4"]
[White "Chuchofrio1"]
[Black "noblerone"]
[Result "0-1"]
[WhiteElo "2276"]
[BlackElo "2448"]
[TimeControl "180+1"]
[EndTime "10:37:17 PST"]
[Termination "noblerone won by resignation"]

1. d4 {[%clk 0:03:00.9]} 1... d5 {[%clk 0:02:59.8]} 2. c4 {[%clk 0:03:00.5]}
2... c6 {[%clk 0:03:00.3]} 3. cxd5 {[%clk 0:03:00.3]} 3... cxd5 {[%clk
0:03:00.4]} 4. Bf4 {[%clk 0:03:00.1]} 4... Nf6 {[%clk 0:03:00.3]} 5. Nc3 {[%clk
0:02:57.1]} 5... a6 {[%clk 0:03:00.5]} 6. e3 {[%clk 0:02:57.2]} 6... Nc6 {[%clk
0:03:01]} 7. Bd3 {[%clk 0:02:57.2]} 7... Bg4 {[%clk 0:03:01]} 8. Nge2 {[%clk
0:02:56.3]} 8... e6 {[%clk 0:03:00.7]} 9. O-O {[%clk 0:02:56.4]} 9... Be7 {[%clk
0:02:59.2]} 10. Rc1 {[%clk 0:02:56.4]} 10... Rc8 {[%clk 0:02:57.8]} 11. f3
{[%clk 0:02:53.9]} 11... Bh5 {[%clk 0:02:57.7]} 12. Na4 {[%clk 0:02:54.2]} 12...
O-O {[%clk 0:02:52]} 13. Nc5 {[%clk 0:02:54]} 13... Qb6 {[%clk 0:02:44.5]} 14.
g4 {[%clk 0:02:44.1]} 14... Bg6 {[%clk 0:02:40.4]} 15. Bxg6 {[%clk 0:02:43.7]}
15... hxg6 {[%clk 0:02:41.3]} 16. g5 {[%clk 0:02:43.8]} 16... Nh5 {[%clk
0:02:36.3]} 17. Nd7 {[%clk 0:02:43.7]} 17... Qxb2 {[%clk 0:02:36.4]} 18. Rb1
{[%clk 0:02:36.7]} 18... Qa3 {[%clk 0:02:19.3]} 19. Nxf8 {[%clk 0:02:35.7]}
19... Nxf4 {[%clk 0:02:16.1]} 20. exf4 {[%clk 0:02:32.3]} 20... Bxf8 {[%clk
0:02:04.8]} 21. Rxb7 {[%clk 0:02:30.6]} 21... Na5 {[%clk 0:02:01.4]} 22. Rb1
{[%clk 0:02:18.5]} 22... Nc4 {[%clk 0:02:00.8]} 23. Qb3 {[%clk 0:02:17.2]} 23...
Qxb3 {[%clk 0:01:50.9]} 24. axb3 {[%clk 0:02:05.8]} 24... Nd2 {[%clk 0:01:51.4]}
25. Rbc1 {[%clk 0:02:03.8]} 25... Nxf1 {[%clk 0:01:49.8]} 26. Rxc8 {[%clk
0:02:03.2]} 26... Nd2 {[%clk 0:01:45.1]} 27. Kf2 {[%clk 0:01:48.2]} 27... Nxb3
{[%clk 0:01:44.3]} 28. Ke3 {[%clk 0:01:47.4]} 28... a5 {[%clk 0:01:33.4]} 29.
Nc3 {[%clk 0:01:43.9]} 29... f6 {[%clk 0:01:32.1]} 30. Nb5 {[%clk 0:01:35.4]}
30... Kf7 {[%clk 0:01:19.7]} 31. Rc7+ {[%clk 0:01:32.3]} 31... Kg8 {[%clk
0:01:20]} 32. Rc8 {[%clk 0:01:24.6]} 32... Kf7 {[%clk 0:01:19.7]} 33. Ra8 {[%clk
0:01:20.7]} 33... Bb4 {[%clk 0:01:15.3]} 34. Rb8 {[%clk 0:01:12.2]} 34... Bd2+
{[%clk 0:01:01.9]} 35. Kd3 {[%clk 0:01:08]} 35... Bxf4 {[%clk 0:01:02.2]} 36.
gxf6 {[%clk 0:01:05.6]} 36... Bxb8 {[%clk 0:01:01.2]} 0-1

[Event "*** Titled Tuesday Blitz"]
[Site "Chess.com"]
[Date "2020.12.29"]
[Round "4"]
[White "r31415"]
[Black "orestn"]
[Result "1-0"]
[WhiteElo "2498"]
[BlackElo "2331"]
[TimeControl "180+1"]
[EndTime "10:37:18 PST"]
[Termination "r31415 won by resignation"]

1. e4 {[%clk 0:03:00.9]} 1... e5 {[%clk 0:02:25.7]} 2. Nf3 {[%clk 0:03:00.4]}
2... Nc6 {[%clk 0:02:25.3]} 3. Bc4 {[%clk 0:03:00]} 3... Bc5 {[%clk 0:02:24.6]}
4. c3 {[%clk 0:03:00.5]} 4... Nf6 {[%clk 0:02:24.5]} 5. d3 {[%clk 0:03:00.9]}
5... h6 {[%clk 0:02:23.1]} 6. O-O {[%clk 0:03:01.3]} 6... O-O {[%clk 0:02:22.9]}
7. Nbd2 {[%clk 0:02:48.5]} 7... Re8 {[%clk 0:02:20.1]} 8. Re1 {[%clk 0:02:47.6]}
8... Bf8 {[%clk 0:02:18]} 9. Nf1 {[%clk 0:02:40]} 9... d6 {[%clk 0:02:18.5]} 10.
Bb3 {[%clk 0:02:35.3]} 10... Ne7 {[%clk 0:02:18.4]} 11. Nh4 {[%clk 0:02:34.2]}
11... Be6 {[%clk 0:02:15.4]} 12. Ng3 {[%clk 0:02:29.8]} 12... Qd7 {[%clk
0:02:14.2]} 13. h3 {[%clk 0:02:26.4]} 13... Bxb3 {[%clk 0:02:12.3]} 14. Qxb3
{[%clk 0:02:23.4]} 14... c6 {[%clk 0:02:08.8]} 15. d4 {[%clk 0:02:20.8]} 15...
g6 {[%clk 0:01:27.1]} 16. Be3 {[%clk 0:01:58.1]} 16... Qc7 {[%clk 0:01:21.9]}
17. Rad1 {[%clk 0:01:38.2]} 17... Bg7 {[%clk 0:01:14.1]} 18. Qa3 {[%clk
0:01:10.2]} 18... a6 {[%clk 0:01:03.5]} 19. f4 {[%clk 0:01:08]} 19... b5 {[%clk
0:00:57.6]} 20. Nf3 {[%clk 0:01:00.3]} 20... Nd7 {[%clk 0:00:53.3]} 21. dxe5
{[%clk 0:00:48.1]} 21... dxe5 {[%clk 0:00:53.2]} 22. Qd6 {[%clk 0:00:48.6]}
22... Rac8 {[%clk 0:00:48.8]} 23. f5 {[%clk 0:00:42.5]} 23... Bf8 {[%clk
0:00:44]} 24. Qxd7 {[%clk 0:00:42.2]} 24... Qxd7 {[%clk 0:00:42.5]} 25. Rxd7
{[%clk 0:00:43.1]} 1-0

[Event "*** Titled Tuesday Blitz"]
[Site "Chess.com"]
[Date "2020.12.29"]
[Round "4"]
[White "HrvojeZagreb"]
[Black "ShahMatKanal"]
[Result "0-1"]
[WhiteElo "2235"]
[BlackElo "2429"]
[TimeControl "180+1"]
[EndTime "10:37:22 PST"]
[Termination "ShahMatKanal won by resignation"]

1. d4 {[%clk 0:03:00.9]} 1... Nf6 {[%clk 0:02:59.3]} 2. Bf4 {[%clk 0:02:59.1]}
2... c5 {[%clk 0:02:57.9]} 3. e3 {[%clk 0:02:57.8]} 3... e6 {[%clk 0:02:54.6]}
4. Nd2 {[%clk 0:02:54.5]} 4... Nc6 {[%clk 0:02:53.3]} 5. Nc4 {[%clk 0:02:49.5]}
5... d5 {[%clk 0:02:51.8]} 6. Ne5 {[%clk 0:02:49.3]} 6... Qb6 {[%clk 0:02:47.3]}
7. Nxc6 {[%clk 0:02:41.6]} 7... bxc6 {[%clk 0:02:45.7]} 8. Rb1 {[%clk
0:02:39.2]} 8... cxd4 {[%clk 0:02:39.4]} 9. exd4 {[%clk 0:02:40.1]} 9... c5
{[%clk 0:02:34.8]} 10. Nf3 {[%clk 0:02:18.8]} 10... cxd4 {[%clk 0:02:33.3]} 11.
Qxd4 {[%clk 0:02:04.7]} 11... Bc5 {[%clk 0:02:31.8]} 12. Qe5 {[%clk 0:01:16.9]}
12... Bxf2+ {[%clk 0:02:24.4]} 13. Kd1 {[%clk 0:01:16.9]} 13... O-O {[%clk
0:02:12.4]} 14. Bd3 {[%clk 0:01:15.5]} 14... Ne4 {[%clk 0:02:08.3]} 15. Bxe4
{[%clk 0:00:25.5]} 15... dxe4 {[%clk 0:02:07.9]} 16. Qxe4 {[%clk 0:00:25]} 16...
Bb7 {[%clk 0:01:55.1]} 17. Qe2 {[%clk 0:00:17.4]} 17... e5 {[%clk 0:01:46.6]}
18. Bd2 {[%clk 0:00:13]} 18... e4 {[%clk 0:01:43.4]} 19. Ng5 {[%clk 0:00:11.7]}
19... e3 {[%clk 0:01:39.2]} 20. Bc3 {[%clk 0:00:11.4]} 20... Qg6 {[%clk
0:01:26.6]} 21. h4 {[%clk 0:00:09.3]} 21... Bxg2 {[%clk 0:01:23.2]} 22. Rh2
{[%clk 0:00:07.6]} 22... Qd6+ {[%clk 0:01:22]} 23. Kc1 {[%clk 0:00:07.2]} 23...
Qxh2 {[%clk 0:01:20.9]} 24. Qg4 {[%clk 0:00:06]} 24... Qg1+ {[%clk 0:01:18.4]}
0-1

[Event "*** Titled Tuesday Blitz"]
[Site "Chess.com"]
[Date "2020.12.29"]
[Round "4"]
[White "rychessmaster1"]
[Black "OparinGrigoriy"]
[Result "0-1"]
[WhiteElo "2568"]
[BlackElo "2967"]
[TimeControl "180+1"]
[EndTime "10:37:24 PST"]
[Termination "OparinGrigoriy won by resignation"]

1. d4 {[%clk 0:03:00.9]} 1... d6 {[%clk 0:02:59.8]} 2. Nc3 {[%clk 0:03:01.3]}
2... Nf6 {[%clk 0:02:59.6]} 3. e4 {[%clk 0:03:01.7]} 3... e5 {[%clk 0:02:59.1]}
4. Nf3 {[%clk 0:03:01.2]} 4... Nbd7 {[%clk 0:02:58.4]} 5. Bc4 {[%clk 0:03:00.6]}
5... Be7 {[%clk 0:02:58.5]} 6. O-O {[%clk 0:03:00.2]} 6... O-O {[%clk
0:02:58.7]} 7. h3 {[%clk 0:03:00]} 7... c6 {[%clk 0:02:58.2]} 8. a4 {[%clk
0:02:59.4]} 8... Nxe4 {[%clk 0:02:54.6]} 9. Nxe4 {[%clk 0:02:40.8]} 9... d5
{[%clk 0:02:54.9]} 10. Nxe5 {[%clk 0:02:38.5]} 10... Nxe5 {[%clk 0:02:54.4]} 11.
dxe5 {[%clk 0:02:39.4]} 11... dxc4 {[%clk 0:02:54.3]} 12. Qf3 {[%clk 0:02:33.1]}
12... Qd5 {[%clk 0:02:50.8]} 13. Bd2 {[%clk 0:02:03.3]} 13... Qxe5 {[%clk
0:02:36.6]} 14. Bc3 {[%clk 0:02:03.3]} 14... Qf5 {[%clk 0:02:37]} 15. Qg3 {[%clk
0:01:56.8]} 15... Qg6 {[%clk 0:02:37.2]} 16. Qe5 {[%clk 0:01:52.9]} 16... Re8
{[%clk 0:02:11.7]} 17. Rfe1 {[%clk 0:01:38.1]} 17... Bxh3 {[%clk 0:02:08.6]} 18.
Qxg7+ {[%clk 0:01:38.5]} 18... Qxg7 {[%clk 0:02:08.5]} 19. Bxg7 {[%clk
0:01:39.4]} 19... Kxg7 {[%clk 0:01:56.9]} 20. gxh3 {[%clk 0:01:38.9]} 20... f5
{[%clk 0:01:57.2]} 21. Ng3 {[%clk 0:01:35.9]} 21... Kg6 {[%clk 0:01:56.7]} 22.
Rad1 {[%clk 0:01:26.3]} 22... Bf6 {[%clk 0:01:47.1]} 23. Rxe8 {[%clk 0:01:26.5]}
23... Rxe8 {[%clk 0:01:48]} 24. b3 {[%clk 0:01:24.3]} 24... cxb3 {[%clk
0:01:46.5]} 25. cxb3 {[%clk 0:01:25.2]} 25... Rd8 {[%clk 0:01:46.2]} 26. Rb1
{[%clk 0:01:14.6]} 26... Rd2 {[%clk 0:01:43.4]} 27. Kf1 {[%clk 0:01:03.2]} 27...
f4 {[%clk 0:01:39.9]} 28. Ne2 {[%clk 0:01:01.8]} 28... f3 {[%clk 0:01:38.8]} 29.
Ng3 {[%clk 0:00:47.8]} 29... Bd4 {[%clk 0:01:38.9]} 30. Ne4 {[%clk 0:00:48]}
30... Re2 {[%clk 0:01:39.3]} 31. Re1 {[%clk 0:00:43.9]} 31... Rb2 {[%clk
0:01:20.2]} 32. Rd1 {[%clk 0:00:36.2]} 32... c5 {[%clk 0:01:19.7]} 33. Nd2
{[%clk 0:00:30.7]} 33... Kf5 {[%clk 0:01:16.7]} 34. Ke1 {[%clk 0:00:26.5]} 34...
Bc3 {[%clk 0:01:15.8]} 0-1

[Event "*** Titled Tuesday Blitz"]
[Site "Chess.com"]
[Date "2020.12.29"]
[Round "4"]
[White "Pelopidass"]
[Black "ChessWarrior7197"]
[Result "0-1"]
[WhiteElo "2557"]
[BlackElo "2916"]
[TimeControl "180+1"]
[EndTime "10:37:30 PST"]
[Termination "ChessWarrior7197 won by resignation"]

1. e4 {[%clk 0:03:00.9]} 1... e5 {[%clk 0:02:56.9]} 2. Nf3 {[%clk 0:03:00.9]}
2... Nc6 {[%clk 0:02:55.1]} 3. Bb5 {[%clk 0:03:00.9]} 3... f5 {[%clk 0:02:55.2]}
4. d3 {[%clk 0:02:52.8]} 4... fxe4 {[%clk 0:02:54.4]} 5. dxe4 {[%clk 0:02:53.7]}
5... Nf6 {[%clk 0:02:55]} 6. Nc3 {[%clk 0:02:39.2]} 6... Bb4 {[%clk 0:02:53.2]}
7. Qd3 {[%clk 0:02:24.3]} 7... d6 {[%clk 0:02:49.7]} 8. O-O {[%clk 0:02:11.6]}
8... Bxc3 {[%clk 0:02:29.5]} 9. Qxc3 {[%clk 0:01:51.7]} 9... Bd7 {[%clk
0:02:24.3]} 10. Bg5 {[%clk 0:01:36.6]} 10... Nxe4 {[%clk 0:02:11.2]} 11. Bxd8
{[%clk 0:01:22.7]} 11... Nxc3 {[%clk 0:02:10.4]} 12. Bxc6 {[%clk 0:01:23.3]}
12... Kxd8 {[%clk 0:01:54.6]} 13. Bxb7 {[%clk 0:01:13.9]} 13... Rb8 {[%clk
0:01:54.2]} 14. bxc3 {[%clk 0:01:00]} 14... Rxb7 {[%clk 0:01:54.2]} 15. Rab1
{[%clk 0:01:00.6]} 15... Rb6 {[%clk 0:01:54.3]} 16. Nd2 {[%clk 0:00:42.6]} 16...
Ke7 {[%clk 0:01:51.2]} 17. Rxb6 {[%clk 0:00:41]} 17... axb6 {[%clk 0:01:51]} 18.
f4 {[%clk 0:00:41.6]} 18... exf4 {[%clk 0:01:49]} 19. Rxf4 {[%clk 0:00:42.5]}
19... Ra8 {[%clk 0:01:49.5]} 20. Re4+ {[%clk 0:00:39.6]} 20... Kf6 {[%clk
0:01:48.9]} 21. Rc4 {[%clk 0:00:32.8]} 21... c5 {[%clk 0:01:45.2]} 22. Rf4+
{[%clk 0:00:32]} 22... Kg6 {[%clk 0:01:42.3]} 23. Nc4 {[%clk 0:00:30.1]} 23...
Rxa2 {[%clk 0:01:42.8]} 24. Nxb6 {[%clk 0:00:23.3]} 24... Be6 {[%clk 0:01:43]}
25. Nc4 {[%clk 0:00:11]} 25... Bxc4 {[%clk 0:01:26.5]} 26. Rxc4 {[%clk
0:00:11.9]} 26... Rxc2 {[%clk 0:01:27.4]} 27. h3 {[%clk 0:00:12.6]} 27... Kf5
{[%clk 0:01:26.2]} 28. Rg4 {[%clk 0:00:11.9]} 28... g5 {[%clk 0:01:24]} 29. c4
{[%clk 0:00:12.3]} 29... h5 {[%clk 0:01:22.9]} 0-1

[Event "*** Titled Tuesday Blitz"]
[Site "Chess.com"]
[Date "2020.12.29"]
[Round "4"]
[White "chessdjw"]
[Black "eCztery"]
[Result "1-0"]
[WhiteElo "2623"]
[BlackElo "2362"]
[TimeControl "180+1"]
[EndTime "10:37:30 PST"]
[Termination "chessdjw won by resignation"]

1. e4 {[%clk 0:02:57.8]} 1... c5 {[%clk 0:02:59.8]} 2. Nf3 {[%clk 0:02:56.7]}
2... Nc6 {[%clk 0:03:00]} 3. Bb5 {[%clk 0:02:55.4]} 3... g6 {[%clk 0:02:59.7]}
4. O-O {[%clk 0:02:46.8]} 4... Bg7 {[%clk 0:02:59.6]} 5. c3 {[%clk 0:02:47]}
5... Nf6 {[%clk 0:02:53.9]} 6. Re1 {[%clk 0:02:38.3]} 6... O-O {[%clk
0:02:52.1]} 7. d4 {[%clk 0:02:38]} 7... cxd4 {[%clk 0:02:51.3]} 8. cxd4 {[%clk
0:02:37.7]} 8... d5 {[%clk 0:02:50.8]} 9. e5 {[%clk 0:02:38]} 9... Ne4 {[%clk
0:02:50.1]} 10. Be3 {[%clk 0:02:38.6]} 10... Qb6 {[%clk 0:02:41.4]} 11. Bxc6
{[%clk 0:02:38.7]} 11... bxc6 {[%clk 0:02:38.6]} 12. Qc1 {[%clk 0:02:38.1]}
12... Rb8 {[%clk 0:02:29.4]} 13. b3 {[%clk 0:02:35.7]} 13... Bg4 {[%clk
0:02:27.7]} 14. h3 {[%clk 0:02:25.7]} 14... Bd7 {[%clk 0:01:56.7]} 15. Nc3
{[%clk 0:02:23.5]} 15... Nxc3 {[%clk 0:01:53.4]} 16. Qxc3 {[%clk 0:02:24.4]}
16... Rfc8 {[%clk 0:01:47.1]} 17. Rac1 {[%clk 0:02:22.1]} 17... e6 {[%clk
0:01:34.9]} 18. h4 {[%clk 0:02:15.5]} 18... Bf8 {[%clk 0:01:34.4]} 19. Bg5
{[%clk 0:01:59.4]} 19... Bb4 {[%clk 0:01:30.3]} 20. Qe3 {[%clk 0:01:45.9]} 20...
Bxe1 {[%clk 0:01:19.2]} 21. Rxe1 {[%clk 0:01:40.8]} 21... c5 {[%clk 0:01:18.3]}
22. Bf6 {[%clk 0:01:40.1]} 22... Qd8 {[%clk 0:00:35.4]} 23. Bxd8 {[%clk
0:01:34]} 23... Rxd8 {[%clk 0:00:36.3]} 24. dxc5 {[%clk 0:01:33.5]} 24... Rb4
{[%clk 0:00:32.9]} 25. Nd4 {[%clk 0:01:31.5]} 25... Rc8 {[%clk 0:00:30.7]} 26.
Rc1 {[%clk 0:01:30.6]} 26... a5 {[%clk 0:00:29.7]} 27. Kh2 {[%clk 0:01:25.5]}
27... a4 {[%clk 0:00:29.5]} 28. a3 {[%clk 0:01:25.2]} 28... Rbb8 {[%clk
0:00:27.3]} 29. b4 {[%clk 0:01:25.2]} 29... Rc7 {[%clk 0:00:25.2]} 30. Qh6
{[%clk 0:01:25.2]} 30... Kh8 {[%clk 0:00:23.2]} 31. Kg3 {[%clk 0:01:25.2]} 31...
Be8 {[%clk 0:00:19.8]} 32. Kf4 {[%clk 0:01:23.8]} 1-0

[Event "*** Titled Tuesday Blitz"]
[Site "Chess.com"]
[Date "2020.12.29"]
[Round "4"]
[White "javirec"]
[Black "saikrishnaReturns"]
[Result "0-1"]
[WhiteElo "2364"]
[BlackElo "2639"]
[TimeControl "180+1"]
[EndTime "10:37:34 PST"]
[Termination "saikrishnaReturns won on time"]

1. c4 {[%clk 0:02:59.2]} 1... e5 {[%clk 0:02:59.1]} 2. g3 {[%clk 0:02:59.5]}
2... h5 {[%clk 0:02:58.8]} 3. h3 {[%clk 0:02:57.7]} 3... f5 {[%clk 0:02:57.1]}
4. Bg2 {[%clk 0:02:57.1]} 4... Nf6 {[%clk 0:02:56.8]} 5. d4 {[%clk 0:02:53.4]}
5... Nc6 {[%clk 0:02:44.4]} 6. Nf3 {[%clk 0:02:48]} 6... e4 {[%clk 0:02:41.9]}
7. Ne5 {[%clk 0:02:48.2]} 7... h4 {[%clk 0:02:25.3]} 8. Nxc6 {[%clk 0:00:21.9]}
8... dxc6 {[%clk 0:02:23.7]} 9. gxh4 {[%clk 0:00:22.8]} 9... Rxh4 {[%clk
0:02:23]} 10. Nc3 {[%clk 0:00:23.2]} 10... Bb4 {[%clk 0:02:16.3]} 11. a3 {[%clk
0:00:23.5]} 11... Bxc3+ {[%clk 0:02:16]} 12. bxc3 {[%clk 0:00:24.4]} 12... Be6
{[%clk 0:02:14.9]} 13. Bg5 {[%clk 0:00:24.9]} 13... Rh5 {[%clk 0:02:13.8]} 14.
h4 {[%clk 0:00:25.3]} 14... Bxc4 {[%clk 0:02:12]} 15. Qd2 {[%clk 0:00:26.2]}
15... Qd5 {[%clk 0:02:07.3]} 16. Rb1 {[%clk 0:00:24.9]} 16... Ba6 {[%clk
0:02:07]} 17. Qf4 {[%clk 0:00:23.5]} 17... O-O-O {[%clk 0:02:06.5]} 18. Qg3
{[%clk 0:00:18.5]} 18... Qc4 {[%clk 0:02:03.6]} 19. O-O {[%clk 0:00:18.4]} 19...
Qxe2 {[%clk 0:02:01.8]} 20. Rfc1 {[%clk 0:00:18.1]} 20... Qg4 {[%clk 0:02:00.6]}
21. Qe3 {[%clk 0:00:16.2]} 21... Nd5 {[%clk 0:01:58.9]} 22. Qd2 {[%clk
0:00:14.2]} 22... Rdh8 {[%clk 0:01:52.8]} 23. c4 {[%clk 0:00:13.1]} 23... Rxg5
{[%clk 0:01:48.9]} 24. Qxg5 {[%clk 0:00:12.1]} 24... Qxg5 {[%clk 0:01:48.5]} 25.
hxg5 {[%clk 0:00:13]} 25... Nf4 {[%clk 0:01:48.9]} 26. Bf1 {[%clk 0:00:12.6]}
26... Rh5 {[%clk 0:01:47.8]} 27. Rb3 {[%clk 0:00:09.5]} 27... Ne6 {[%clk
0:01:39.2]} 28. Rg3 {[%clk 0:00:05.9]} 28... Nxd4 {[%clk 0:01:35.6]} 29. Re3
{[%clk 0:00:01.4]} 29... Nf3+ {[%clk 0:01:33.8]} 30. Kg2 {[%clk 0:00:01.7]}
30... Rxg5+ {[%clk 0:01:32.9]} 31. Kh3 {[%clk 0:00:02.4]} 31... Rg1 {[%clk
0:01:30.4]} 0-1

[Event "*** Titled Tuesday Blitz"]
[Site "Chess.com"]
[Date "2020.12.29"]
[Round "4"]
[White "ljuks68"]
[Black "Chesswizard_2007"]
[Result "0-1"]
[WhiteElo "2371"]
[BlackElo "2659"]
[TimeControl "180+1"]
[EndTime "10:37:37 PST"]
[Termination "Chesswizard_2007 won on time"]

1. e4 {[%clk 0:01:20.7]} 1... Nc6 {[%clk 0:02:56.1]} 2. Nf3 {[%clk 0:01:19.9]}
2... e5 {[%clk 0:02:53.5]} 3. Bb5 {[%clk 0:01:19.2]} 3... Nf6 {[%clk 0:02:52.6]}
4. Qe2 {[%clk 0:01:18.8]} 4... d6 {[%clk 0:02:44.4]} 5. c3 {[%clk 0:01:18.3]}
5... a6 {[%clk 0:02:43.4]} 6. Ba4 {[%clk 0:01:17.7]} 6... Bd7 {[%clk 0:02:41.7]}
7. O-O {[%clk 0:01:17.1]} 7... Be7 {[%clk 0:02:41.6]} 8. d4 {[%clk 0:01:15.8]}
8... O-O {[%clk 0:02:41.5]} 9. Rd1 {[%clk 0:01:14.7]} 9... Qc8 {[%clk 0:02:35]}
10. Bb3 {[%clk 0:01:05.2]} 10... h6 {[%clk 0:02:33.5]} 11. Nbd2 {[%clk
0:01:03.5]} 11... Re8 {[%clk 0:02:32.6]} 12. d5 {[%clk 0:00:59.3]} 12... Nb8
{[%clk 0:02:13]} 13. Nf1 {[%clk 0:00:58]} 13... Bg4 {[%clk 0:02:10.3]} 14. Ng3
{[%clk 0:00:52.5]} 14... Nbd7 {[%clk 0:02:09.9]} 15. h3 {[%clk 0:00:52.3]} 15...
Bxf3 {[%clk 0:02:10.4]} 16. Qxf3 {[%clk 0:00:51.8]} 16... Kh7 {[%clk 0:02:07.1]}
17. Nf5 {[%clk 0:00:50.8]} 17... Bf8 {[%clk 0:02:03]} 18. g4 {[%clk 0:00:47.2]}
18... g6 {[%clk 0:01:59.7]} 19. Ng3 {[%clk 0:00:44.7]} 19... Bg7 {[%clk
0:01:56.1]} 20. Kg2 {[%clk 0:00:38.3]} 20... Nc5 {[%clk 0:01:53.5]} 21. Bc2
{[%clk 0:00:37.4]} 21... a5 {[%clk 0:01:52.8]} 22. Be3 {[%clk 0:00:36.6]} 22...
b6 {[%clk 0:01:51.9]} 23. b3 {[%clk 0:00:33.4]} 23... Rf8 {[%clk 0:01:50.3]} 24.
a3 {[%clk 0:00:31.4]} 24... Qd7 {[%clk 0:01:47.2]} 25. b4 {[%clk 0:00:28]} 25...
axb4 {[%clk 0:01:48.1]} 26. axb4 {[%clk 0:00:27.7]} 26... Na4 {[%clk 0:01:48.6]}
27. c4 {[%clk 0:00:27.9]} 27... Nb2 {[%clk 0:01:47.2]} 28. Rdb1 {[%clk
0:00:14.9]} 28... Nxc4 {[%clk 0:01:46.3]} 29. Bc1 {[%clk 0:00:15.3]} 29... b5
{[%clk 0:01:44.7]} 30. Nf5 {[%clk 0:00:09.7]} 30... gxf5 {[%clk 0:01:43.7]} 31.
exf5 {[%clk 0:00:09.9]} 31... e4 {[%clk 0:01:43.5]} 32. Qf4 {[%clk 0:00:08.1]}
32... e3 {[%clk 0:01:41]} 33. fxe3 {[%clk 0:00:07.1]} 33... Ne5 {[%clk
0:01:37.6]} 34. Bb2 {[%clk 0:00:04.5]} 34... Kh8 {[%clk 0:01:33.5]} 0-1

[Event "*** Titled Tuesday Blitz"]
[Site "Chess.com"]
[Date "2020.12.29"]
[Round "4"]
[White "Salem-AR"]
[Black "Karateloru"]
[Result "1-0"]
[WhiteElo "2937"]
[BlackElo "2748"]
[TimeControl "180+1"]
[EndTime "10:37:39 PST"]
[Termination "Salem-AR won by resignation"]

1. e4 {[%clk 0:02:56.1]} 1... c5 {[%clk 0:02:59.2]} 2. Nf3 {[%clk 0:02:56.2]}
2... e6 {[%clk 0:02:59.6]} 3. c3 {[%clk 0:02:55.6]} 3... Nf6 {[%clk 0:02:59.1]}
4. e5 {[%clk 0:02:55.8]} 4... Nd5 {[%clk 0:02:59.7]} 5. d4 {[%clk 0:02:56.6]}
5... cxd4 {[%clk 0:03:00.4]} 6. cxd4 {[%clk 0:02:57.5]} 6... d6 {[%clk
0:03:00.6]} 7. Bc4 {[%clk 0:02:57.6]} 7... Nb6 {[%clk 0:03:00]} 8. Bd3 {[%clk
0:02:52.3]} 8... Nc6 {[%clk 0:02:59.5]} 9. O-O {[%clk 0:02:51.4]} 9... dxe5
{[%clk 0:02:58.7]} 10. dxe5 {[%clk 0:02:51.5]} 10... Nd7 {[%clk 0:02:56.9]} 11.
Re1 {[%clk 0:02:46.3]} 11... Nc5 {[%clk 0:02:56.2]} 12. Bc2 {[%clk 0:02:46.8]}
12... Qxd1 {[%clk 0:02:53.7]} 13. Rxd1 {[%clk 0:02:46.6]} 13... Nb4 {[%clk
0:02:54]} 14. Rd2 {[%clk 0:02:31.3]} 14... Nxc2 {[%clk 0:02:51.5]} 15. Rxc2
{[%clk 0:02:32.2]} 15... Bd7 {[%clk 0:02:51.8]} 16. Be3 {[%clk 0:02:31.8]} 16...
Nd3 {[%clk 0:02:43.3]} 17. Nbd2 {[%clk 0:02:23.8]} 17... Nb4 {[%clk 0:02:42.7]}
18. Rc7 {[%clk 0:02:08.4]} 18... Bc6 {[%clk 0:02:39.2]} 19. Ng5 {[%clk
0:02:08.7]} 19... Be7 {[%clk 0:02:37.8]} 20. Rxe7+ {[%clk 0:02:08]} 20... Kxe7
{[%clk 0:02:36]} 21. Bc5+ {[%clk 0:02:08.9]} 21... Ke8 {[%clk 0:02:35.3]} 22.
Bxb4 {[%clk 0:02:09.8]} 22... Rd8 {[%clk 0:02:31.8]} 23. Nc4 {[%clk 0:01:55.7]}
23... Rd4 {[%clk 0:02:21.4]} 24. Nd6+ {[%clk 0:01:55.9]} 24... Kd7 {[%clk
0:02:21.6]} 25. Ngxf7 {[%clk 0:01:56.4]} 25... Rb8 {[%clk 0:02:01.5]} 26. Bc5
{[%clk 0:01:55]} 26... Rd2 {[%clk 0:02:01.4]} 27. Bxa7 {[%clk 0:01:42.1]} 27...
Rf8 {[%clk 0:01:53.8]} 28. Bc5 {[%clk 0:01:33.9]} 28... Rxb2 {[%clk 0:01:39.5]}
29. Nc4 {[%clk 0:01:30.8]} 29... Rxa2 {[%clk 0:01:32]} 30. Rxa2 {[%clk
0:01:27.5]} 30... Rxf7 {[%clk 0:01:32]} 31. Nb6+ {[%clk 0:01:25.5]} 31... Kc7
{[%clk 0:01:31.6]} 32. Ra8 {[%clk 0:01:25.7]} 32... Bd7 {[%clk 0:01:30.1]} 33.
f3 {[%clk 0:01:18.4]} 33... Rf5 {[%clk 0:01:26.9]} 34. Nxd7 {[%clk 0:00:53.7]}
34... Kxd7 {[%clk 0:01:25.3]} 35. Bd6 {[%clk 0:00:54.2]} 35... Rf7 {[%clk
0:01:22.2]} 36. Rf8 {[%clk 0:00:52.5]} 36... Rxf8 {[%clk 0:01:21.5]} 37. Bxf8
{[%clk 0:00:53.4]} 37... g6 {[%clk 0:01:22.4]} 38. Kf2 {[%clk 0:00:53.7]} 38...
Kc6 {[%clk 0:01:22.8]} 39. Ke3 {[%clk 0:00:54.1]} 39... Kd5 {[%clk 0:01:23.7]}
40. f4 {[%clk 0:00:54]} 40... b5 {[%clk 0:01:22.8]} 41. Kd3 {[%clk 0:00:53.9]}
41... h5 {[%clk 0:01:22.4]} 42. h3 {[%clk 0:00:53.7]} 42... g5 {[%clk
0:01:20.3]} 43. fxg5 {[%clk 0:00:53]} 43... Kxe5 {[%clk 0:01:21.2]} 44. g4
{[%clk 0:00:52.9]} 44... hxg4 {[%clk 0:01:20.7]} 45. hxg4 {[%clk 0:00:53.8]} 1-0